{"text_format":"1","workbook":"xlsx","n_sheets":2,"sheets":["Graphs","Constructing_Graphs"],"not_rendered":{"charts":11,"images":3,"macros":1,"external_links":0,"defined_names":4,"comments":0,"pivot_tables":0},"unopened":[],"bounds":{"document_bytes":16777216,"sheet_cells":100000,"rows_first":2000,"rows_last":500,"rows_between":2000,"halvings":0,"cell_chars":16384,"cell_head_chars":4096},"cells_cut":0,"cells_raw":0,"read":"whole","date_system":"1900"}

{"sheet":"Graphs","index":0,"n_rows":196,"n_cols":38,"rows_kept":196,"cut":false,"hidden":false,"merged":[[0,1,4,31],[10,19,10,21],[10,23,10,26],[10,36,10,37],[11,36,11,37],[7,36,7,37],[8,19,8,21],[8,23,8,26],[8,36,8,37],[9,36,9,37],[12,19,12,21],[12,23,12,26],[32,5,32,6],[32,36,32,37],[33,36,33,37],[37,36,37,37],[38,19,38,21],[38,23,38,26],[57,36,57,37],[34,19,34,21],[34,23,34,26],[34,36,34,37],[35,36,35,37],[36,19,36,21],[36,23,36,26],[36,36,36,37],[58,36,58,37],[59,19,59,21],[59,23,59,26],[59,36,59,37],[60,36,60,37],[61,19,61,21],[61,23,61,26],[63,19,63,21],[63,23,63,26],[83,5,83,6],[85,19,85,21],[85,23,85,26],[87,19,87,21],[87,23,87,26],[89,19,89,21],[89,23,89,26],[112,19,112,21],[112,23,112,26],[114,19,114,21],[114,23,114,26],[116,19,116,21],[116,23,116,26],[164,19,164,21],[164,23,164,26],[166,19,166,21],[166,23,166,26],[138,19,138,21],[138,23,138,26],[140,19,140,21],[140,23,140,26],[142,19,142,21],[142,23,142,26],[195,19,195,21],[195,23,195,26],[168,19,168,21],[168,23,168,26],[189,5,189,6],[191,19,191,21],[191,23,191,26],[193,19,193,21],[193,23,193,26]]}
[null,"Level 2 Statistics - Graphs                                                                                                                                                                   Created by Mr.Lafferty@mathsrevision.com   "]
[]
[]
[]
[]
[]
[null,"Q1.   The data shows the colour of cars sold one month."]
[null,null,null,null,null,null,null,null,null,null,null,null,null,null,null,null,null,null,null,null,null,null,null,null,null,null,null,null,null,null,null,null,null,null,null,"Red",{"$f":"(ROUND(RAND()*(20-10)+10,0))","v":17}]
[null,null,"     How many more green than red cars were sold.",null,null,null,null,null,null,null,null,null,null,null,null,null,null,null,null,"answer",null,null,null,null,null,null,null,null,null,null,null,null,{"$f":"AK10-AK8","v":6},null,null,"Blue",{"$f":"(ROUND(RAND()*(20-13)+13,0))","v":16}]
[null,null,null,null,null,null,null,null,null,null,null,null,null,null,null,null,null,null,null,null,null,null,null,null,null,null,null,null,null,null,null,null,null,null,null,"Green",{"$f":"(ROUND(RAND()*(25-21)+21,0))","v":23}]
[null,null,"     How many fewer black than blue cars were sold. ",null,null,null,null,null,null,null,null,null,null,null,null,null,null,null,null,"answer",null,null,null,null,null,null,null,null,null,null,null,null,{"$f":"AK9-AK11","v":4},null,null,"Black",{"$f":"(ROUND(RAND()*(12-6)+6,0))","v":12}]
[null,null,null,null,null,null,null,null,null,null,null,null,null,null,null,null,null,null,null,null,null,null,null,null,null,null,null,null,null,null,null,null,null,null,null,"White",{"$f":"(ROUND(RAND()*(10-2)+2,0))","v":4}]
[null,null,"     How many cars were sold altogether.",null,null,null,null,null,null,null,null,null,null,null,null,null,null,null,null,"answer",null,null,null,null,null,null,null,null,null,null,null,null,{"$f":"SUM(AK8:AL12)","v":72}]
[]
[]
[]
[]
[]
[]
[]
[]
[]
[]
[]
[]
[]
[]
[]
[]
[]
[]
[null,"Q2.   The data shows the type of ice creams sold over a week."]
[]
[null,null,null,null,null,null,null,null,null,null,null,null,null,null,null,null,null,null,null,null,null,null,null,null,null,null,null,null,null,null,null,null,null,null,null,"Vanilla",{"$f":"(ROUND(RAND()*(20-10)+10,0))","v":16}]
[null,null,"     How many more mint than vanilla ice cream were sold.",null,null,null,null,null,null,null,null,null,null,null,null,null,null,null,null,"answer",null,null,null,null,null,null,null,null,null,null,null,null,{"$f":"AK36-AK34","v":6},null,null,"Strawberry",{"$f":"(ROUND(RAND()*(20-13)+13,0))","v":18}]
[null,null,null,null,null,null,null,null,null,null,null,null,null,null,null,null,null,null,null,null,null,null,null,null,null,null,null,null,null,null,null,null,null,null,null,"Mint",{"$f":"(ROUND(RAND()*(25-21)+21,0))","v":22}]
[null,null,"     How many fewer chocolate ice creams were sold ",null,null,null,null,null,null,null,null,null,null,null,null,null,null,null,null,"answer",null,null,null,null,null,null,null,null,null,null,null,null,{"$f":"AK35-AK37","v":12},null,null,"Chocolate",{"$f":"(ROUND(RAND()*(12-6)+6,0))","v":6}]
[null,null,"     than strawberry",null,null,null,null,null,null,null,null,null,null,null,null,null,null,null,null,null,null,null,null,null,null,null,null,null,null,null,null,null,null,null,null,"Raspberry",{"$f":"(ROUND(RAND()*(10-2)+2,0))","v":2}]
[null,null,"     How many ice creams were sold altogether.",null,null,null,null,null,null,null,null,null,null,null,null,null,null,null,null,"answer",null,null,null,null,null,null,null,null,null,null,null,null,{"$f":"SUM(AK34:AL38)","v":64}]
[]
[]
[]
[]
[]
[]
[]
[]
[]
[]
[]
[]
[]
[]
[]
[]
[]
[null,"Q3.   Data was collected on what colour of eyes pupils had."]
[null,null,null,{"$f":"\"In total \"&AK58&\" pupils were surveyed.\"","v":"In total 660 pupils were surveyed."},null,null,null,null,null,null,null,null,null,null,null,null,null,null,null,null,null,null,null,null,null,null,null,null,null,null,null,null,null,null,null,null,{"$f":"(ROUND(RAND()*(45-15)+15,0)*10)*2","v":660}]
[null,null,null,null,null,null,null,null,null,null,null,null,null,null,null,null,null,null,null,null,null,null,null,null,null,null,null,null,null,null,null,null,null,null,null,"Blue",{"$f":"(ROUND(RAND()*(4-1)+1,0)*10)*AK58/2/100","v":33}]
[null,null,"     How many pupils had blue eyes.",null,null,null,null,null,null,null,null,null,null,null,null,null,null,null,null,"answer",null,null,null,null,null,null,null,null,null,null,null,null,{"$f":"AK59","v":33},null,null,"Brown",{"$f":"(ROUND(RAND()*(4-1)+1,0)*10)*AK58/100","v":132}]
[null,null,null,null,null,null,null,null,null,null,null,null,null,null,null,null,null,null,null,null,null,null,null,null,null,null,null,null,null,null,null,null,null,null,null,"Green",{"$f":"AK58-AK60-AK59","v":495}]
[null,null,"     How many pupils had brown eyes.",null,null,null,null,null,null,null,null,null,null,null,null,null,null,null,null,"answer",null,null,null,null,null,null,null,null,null,null,null,null,{"$f":"AK60","v":132}]
[]
[null,null,"     How many pupils had green eyes.",null,null,null,null,null,null,null,null,null,null,null,null,null,null,null,null,"answer",null,null,null,null,null,null,null,null,null,null,null,null,{"$f":"AK61","v":495}]
[]
[]
[]
[]
[]
[]
[]
[]
[]
[]
[]
[]
[]
[]
[]
[]
[]
[]
[null,"Q4.   The line graph shows the expenditure and income for a company."]
[null,null,null,null,null,null,null,null,null,null,null,null,null,null,null,null,null,null,null,null,null,null,null,null,null,null,null,null,null,null,null,null,null,null,null,"Year","Income","Expenditure"]
[null,null,null,null,null,null,null,null,null,null,null,null,null,null,null,null,null,null,null,null,null,null,null,null,null,null,null,null,null,null,null,null,null,null,null,2000,{"$f":"(ROUND(RAND()*(20-15)+15,0))","v":16},{"$f":"(ROUND(RAND()*(13-10)+10,0))","v":11}]
[null,null,"     How much profit did the company make in 2003.",null,null,null,null,null,null,null,null,null,null,null,null,null,null,null,null,"answer",null,null,null,null,null,null,null,null,null,null,null,null,{"$f":"(AK88-AL88)*1000","v":7000},null,null,2001,{"$f":"(ROUND(RAND()*(35-26)+26,0))","v":30},{"$f":"(ROUND(RAND()*(25-20)+20,0))","v":23}]
[null,null,null,null,null,null,null,null,null,null,null,null,null,null,null,null,null,null,null,null,null,null,null,null,null,null,null,null,null,null,null,null,null,null,null,2002,{"$f":"(ROUND(RAND()*(40-35)+35,0))","v":38},{"$f":"(ROUND(RAND()*(50-46)+46,0))","v":49}]
[null,null,"     What year did the company make a loss.",null,null,null,null,null,null,null,null,null,null,null,null,null,null,null,null,"answer",null,null,null,null,null,null,null,null,null,null,null,null,2002,null,null,2003,{"$f":"(ROUND(RAND()*(55-45)+45,0))","v":45},{"$f":"(ROUND(RAND()*(40-35)+35,0))","v":38}]
[null,null,null,null,null,null,null,null,null,null,null,null,null,null,null,null,null,null,null,null,null,null,null,null,null,null,null,null,null,null,null,null,null,null,null,2004,{"$f":"(ROUND(RAND()*(70-67)+67,0))","v":68},{"$f":"(ROUND(RAND()*(65-60)+60,0))","v":62}]
[null,null,"     How much profit did the company make over the 5 years.",null,null,null,null,null,null,null,null,null,null,null,null,null,null,null,null,"answer",null,null,null,null,null,null,null,null,null,null,null,null,{"$f":"((AK85-AL85)+(AK86-AL86)+(AK87-AL87)+(AK88-AL88)+(AK89-AL89))*1000","v":14000}]
[]
[]
[]
[]
[]
[]
[]
[]
[]
[]
[]
[]
[]
[]
[]
[]
[]
[]
[]
[]
[null,"Q5.   The data shows the types of cake sold over 7 days."]
[null,null,null,null,null,null,null,null,null,null,null,null,null,null,null,null,null,null,null,null,null,null,null,null,null,null,null,null,null,null,null,null,null,null,null,"Eclairs",{"$f":"(ROUND(RAND()*(200-100)+100,0))","v":148}]
[null,null,"     How many more Ginger than Eclairs were sold.",null,null,null,null,null,null,null,null,null,null,null,null,null,null,null,null,"answer",null,null,null,null,null,null,null,null,null,null,null,null,{"$f":"AK114-AK112","v":63},null,null,"Doughnut",{"$f":"(ROUND(RAND()*(200-130)+130,0))","v":165}]
[null,null,null,null,null,null,null,null,null,null,null,null,null,null,null,null,null,null,null,null,null,null,null,null,null,null,null,null,null,null,null,null,null,null,null,"Ginger",{"$f":"(ROUND(RAND()*(250-210)+210,0))","v":211}]
[null,null,"     How many fewer Chocolate than Doughnuts were sold. ",null,null,null,null,null,null,null,null,null,null,null,null,null,null,null,null,"answer",null,null,null,null,null,null,null,null,null,null,null,null,{"$f":"AK113-AK115","v":71},null,null,"Chocolate",{"$f":"(ROUND(RAND()*(120-60)+60,0))","v":94}]
[null,null,null,null,null,null,null,null,null,null,null,null,null,null,null,null,null,null,null,null,null,null,null,null,null,null,null,null,null,null,null,null,null,null,null,"Carrot",{"$f":"(ROUND(RAND()*(100-20)+20,0))","v":58}]
[null,null,"     How many cakes were sold altogether.",null,null,null,null,null,null,null,null,null,null,null,null,null,null,null,null,"answer",null,null,null,null,null,null,null,null,null,null,null,null,{"$f":"SUM(AK112:AL116)","v":676}]
[]
[]
[]
[]
[]
[]
[]
[]
[]
[]
[]
[]
[]
[]
[]
[]
[]
[]
[]
[null,"Q6.   The data shows the types of fruits sold over a week."]
[null,null,null,null,null,null,null,null,null,null,null,null,null,null,null,null,null,null,null,null,null,null,null,null,null,null,null,null,null,null,null,null,null,null,null,"Apple",{"$f":"(ROUND(RAND()*(200-100)+100,0))","v":117}]
[null,null,"     How many more bananas than apples were sold.",null,null,null,null,null,null,null,null,null,null,null,null,null,null,null,null,"answer",null,null,null,null,null,null,null,null,null,null,null,null,{"$f":"AK140-AK138","v":102},null,null,"Orange",{"$f":"(ROUND(RAND()*(200-130)+130,0))","v":183}]
[null,null,null,null,null,null,null,null,null,null,null,null,null,null,null,null,null,null,null,null,null,null,null,null,null,null,null,null,null,null,null,null,null,null,null,"Banana",{"$f":"(ROUND(RAND()*(250-210)+210,0))","v":219}]
[null,null,"     How many fewer pears than oranges were sold. ",null,null,null,null,null,null,null,null,null,null,null,null,null,null,null,null,"answer",null,null,null,null,null,null,null,null,null,null,null,null,{"$f":"AK139-AK141","v":116},null,null,"Pear",{"$f":"(ROUND(RAND()*(120-60)+60,0))","v":67}]
[null,null,null,null,null,null,null,null,null,null,null,null,null,null,null,null,null,null,null,null,null,null,null,null,null,null,null,null,null,null,null,null,null,null,null,"Melon",{"$f":"(ROUND(RAND()*(100-20)+20,0))","v":95}]
[null,null,"     How many pieces of fruit were sold altogether.",null,null,null,null,null,null,null,null,null,null,null,null,null,null,null,null,"answer",null,null,null,null,null,null,null,null,null,null,null,null,{"$f":"SUM(AK138:AL142)","v":681}]
[]
[]
[]
[]
[]
[]
[]
[]
[]
[]
[]
[]
[]
[]
[]
[]
[]
[]
[null,"Q7.   Data was collected on what colour of hair pupils had."]
[null,null,null,{"$f":"\"In total \"&AK163&\" pupils were surveyed.\"","v":"In total 320 pupils were surveyed."},null,null,null,null,null,null,null,null,null,null,null,null,null,null,null,null,null,null,null,null,null,null,null,null,null,null,null,null,null,null,null,null,{"$f":"(ROUND(RAND()*(45-15)+15,0)*10)*2","v":320}]
[null,null,null,null,null,null,null,null,null,null,null,null,null,null,null,null,null,null,null,null,null,null,null,null,null,null,null,null,null,null,null,null,null,null,null,"Brown",{"$f":"(ROUND(RAND()*(4-1)+1,0)*10)*AK163/2/100","v":32}]
[null,null,"     How many pupils had brown hair.",null,null,null,null,null,null,null,null,null,null,null,null,null,null,null,null,"answer",null,null,null,null,null,null,null,null,null,null,null,null,{"$f":"AK164","v":32},null,null,"Black",{"$f":"(ROUND(RAND()*(4-1)+1,0)*10)*AK163/100","v":96}]
[null,null,null,null,null,null,null,null,null,null,null,null,null,null,null,null,null,null,null,null,null,null,null,null,null,null,null,null,null,null,null,null,null,null,null,"Blonde",{"$f":"AK163-AK165-AK164","v":192}]
[null,null,"     How many pupils had black hair.",null,null,null,null,null,null,null,null,null,null,null,null,null,null,null,null,"answer",null,null,null,null,null,null,null,null,null,null,null,null,{"$f":"AK165","v":96}]
[]
[null,null,"     How many pupils had blonde hair.",null,null,null,null,null,null,null,null,null,null,null,null,null,null,null,null,"answer",null,null,null,null,null,null,null,null,null,null,null,null,{"$f":"AK166","v":192}]
[]
[]
[]
[]
[]
[]
[]
[]
[]
[]
[]
[]
[]
[]
[]
[]
[]
[]
[]
[null,"Q8.   The line graph shows the expenditure and income for a company."]
[null,null,null,null,null,null,null,null,null,null,null,null,null,null,null,null,null,null,null,null,null,null,null,null,null,null,null,null,null,null,null,null,null,null,null,"Year","Income","Expenditure"]
[null,null,null,null,null,null,null,null,null,null,null,null,null,null,null,null,null,null,null,null,null,null,null,null,null,null,null,null,null,null,null,null,null,null,null,"1998",{"$f":"(ROUND(RAND()*(200-150)+150,0))","v":150},{"$f":"(ROUND(RAND()*(130-100)+100,0))","v":111}]
[null,null,"     How much profit did the company make in 2002.",null,null,null,null,null,null,null,null,null,null,null,null,null,null,null,null,"answer",null,null,null,null,null,null,null,null,null,null,null,null,{"$f":"(AK194-AL194)*1000","v":142000},null,null,"1999",{"$f":"(ROUND(RAND()*(350-260)+260,0))","v":301},{"$f":"(ROUND(RAND()*(250-200)+200,0))","v":220}]
[null,null,null,null,null,null,null,null,null,null,null,null,null,null,null,null,null,null,null,null,null,null,null,null,null,null,null,null,null,null,null,null,null,null,null,"2000",{"$f":"(ROUND(RAND()*(400-350)+350,0))","v":374},{"$f":"(ROUND(RAND()*(500-460)+460,0))","v":481}]
[null,null,"     What year did the company make a loss.",null,null,null,null,null,null,null,null,null,null,null,null,null,null,null,null,"answer",null,null,null,null,null,null,null,null,null,null,null,null,2002,null,null,"2001",{"$f":"(ROUND(RAND()*(550-450)+450,0))","v":513},{"$f":"(ROUND(RAND()*(400-350)+350,0))","v":371}]
[null,null,null,null,null,null,null,null,null,null,null,null,null,null,null,null,null,null,null,null,null,null,null,null,null,null,null,null,null,null,null,null,null,null,null,"2002",{"$f":"(ROUND(RAND()*(700-670)+670,0))","v":678},{"$f":"(ROUND(RAND()*(650-600)+600,0))","v":626}]
[null,null,"     How much profit did the company make over the 5 years.",null,null,null,null,null,null,null,null,null,null,null,null,null,null,null,null,"answer",null,null,null,null,null,null,null,null,null,null,null,null,{"$f":"((AK191-AL191)+(AK192-AL192)+(AK193-AL193)+(AK194-AL194)+(AK195-AL195))*1000","v":207000}]

{"sheet":"Constructing_Graphs","index":1,"n_rows":65,"n_cols":38,"rows_kept":65,"cut":false,"hidden":false,"merged":[[0,1,4,42],[7,36,7,37],[8,36,8,37],[9,36,9,37],[6,36,6,37],[10,36,10,37],[11,36,11,37],[35,36,35,37],[32,5,32,6],[32,36,32,37],[33,36,33,37],[34,36,34,37]]}
[null,"Level 2 Statistics - Graphs                                                                                                                                                                   Created by Mr.Lafferty@mathsrevision.com  "]
[]
[]
[]
[]
[]
[null,"Q1.   The data shown opposite indicates the number of different coloured car sold one month.",null,null,null,null,null,null,null,null,null,null,null,null,null,null,null,null,null,null,null,null,null,null,null,null,null,null,null,null,null,null,null,null,null,"Colour","Total"]
[null,null,null,null,null,null,null,null,null,null,null,null,null,null,null,null,null,null,null,null,null,null,null,null,null,null,null,null,null,null,null,null,null,null,null,"Red",{"$f":"(ROUND(RAND()*(20-10)+10,0))","v":15}]
[null,null,null,"Construct a bar graph to illustrate this information.",null,null,null,null,null,null,null,null,null,null,null,null,null,null,null,null,null,null,null,null,null,null,null,null,null,null,null,null,null,null,null,"Blue",{"$f":"(ROUND(RAND()*(20-13)+13,0))","v":18}]
[null,null,null,null,null,null,null,null,null,null,null,null,null,null,null,null,null,null,null,null,null,null,null,null,null,null,null,null,null,null,null,null,null,null,null,"Green",{"$f":"(ROUND(RAND()*(25-21)+21,0))","v":24}]
[null,null,null,null,null,null,null,null,null,null,null,null,null,null,null,null,null,null,null,null,null,null,null,null,null,null,null,null,null,null,null,null,null,null,null,"Black",{"$f":"(ROUND(RAND()*(12-6)+6,0))","v":12}]
[null,null,null,null,null,null,null,null,null,null,null,null,null,null,null,null,null,null,null,null,null,null,null,null,null,null,null,null,null,null,null,null,null,null,null,"White",{"$f":"(ROUND(RAND()*(10-2)+2,0))","v":5}]
[]
[]
[]
[]
[]
[]
[]
[]
[]
[]
[]
[]
[]
[]
[]
[]
[]
[]
[]
[null,"Q2.   Data was collected on what colour of eyes pupils had."]
[null,null,"In total ",null,null,{"$f":"(ROUND(RAND()*(45-15)+15,0)*10)*2","v":440},null,"pupils were surveyed.",null,null,null,null,null,null,null,null,null,null,null,null,null,null,null,null,null,null,null,null,null,null,null,null,null,null,null,"Colour","Totals"]
[null,null,null,null,null,null,null,null,null,null,null,null,null,null,null,null,null,null,null,null,null,null,null,null,null,null,null,null,null,null,null,null,null,null,null,"Blue",{"$f":"(ROUND(RAND()*(4-1)+1,0)*10)*F33/2/100","v":44}]
[null,null,null,null,null,null,null,null,null,null,null,null,null,null,null,null,null,null,null,null,null,null,null,null,null,null,null,null,null,null,null,null,null,null,null,"Brown",{"$f":"(ROUND(RAND()*(4-1)+1,0)*10)*F33/100","v":88}]
[null,null,null,null,null,null,null,null,null,null,null,null,null,null,null,null,null,null,null,null,null,null,null,null,null,null,null,null,null,null,null,null,null,null,null,"Green",{"$f":"F33-AK35-AK34","v":308}]
[]
[null,null,null,"Construct a pie chart to illustrate this infomation."]
[null,null,null,"Indicate the percentage each colour is of the total on your graph."]
[]
[]
[]
[]
[]
[]
[]
[]
[]
[]
[]
[]
[]
[]
[]
[]
[]
[]
[]
[null,"Q3.   The line graph shows the expenditure and income for a company."]
[null,null,null,null,null,null,null,null,null,null,null,null,null,null,null,null,null,null,null,null,null,null,null,null,null,null,null,null,null,null,null,null,null,null,null,"Year","Income","Expenditure"]
[null,null,null,null,null,null,null,null,null,null,null,null,null,null,null,null,null,null,null,null,null,null,null,null,null,null,null,null,null,null,null,null,null,null,null,2000,{"$f":"(ROUND(RAND()*(20-15)+15,0))","v":17},{"$f":"(ROUND(RAND()*(13-10)+10,0))","v":11}]
[null,null,null,null,null,null,null,null,null,null,null,null,null,null,null,null,null,null,null,null,null,null,null,null,null,null,null,null,null,null,null,null,null,null,null,2001,{"$f":"(ROUND(RAND()*(35-26)+26,0))","v":32},{"$f":"(ROUND(RAND()*(25-20)+20,0))","v":23}]
[null,null,null,null,null,null,null,null,null,null,null,null,null,null,null,null,null,null,null,null,null,null,null,null,null,null,null,null,null,null,null,null,null,null,null,2002,{"$f":"(ROUND(RAND()*(40-35)+35,0))","v":38},{"$f":"(ROUND(RAND()*(50-46)+46,0))","v":48}]
[null,null,null,"Construct a line graph to illustrate the information.",null,null,null,null,null,null,null,null,null,null,null,null,null,null,null,null,null,null,null,null,null,null,null,null,null,null,null,null,null,null,null,2003,{"$f":"(ROUND(RAND()*(55-45)+45,0))","v":49},{"$f":"(ROUND(RAND()*(40-35)+35,0))","v":38}]
[null,null,null,null,null,null,null,null,null,null,null,null,null,null,null,null,null,null,null,null,null,null,null,null,null,null,null,null,null,null,null,null,null,null,null,2004,{"$f":"(ROUND(RAND()*(70-67)+67,0))","v":69},{"$f":"(ROUND(RAND()*(65-60)+60,0))","v":62}]